fUST/lending_fUST_20260216
["ID","MTS","AMOUNT","RATE_DAILY","PERIOD"]
[405698864,1771248568231,-500.0,0.00016057,2]
[405698865,1771248568257,-500.0,0.00016057,2]
[405698866,1771248568284,-500.0,0.00016057,2]
[405698867,1771248568309,-500.0,0.00016057,2]
[405698868,1771248568337,-500.0,0.00016057,2]
[405698869,1771248568362,-500.0,0.00016057,2]
[405698870,1771248568387,-500.0,0.00016057,2]
[405698871,1771248568411,-500.0,0.00016057,2]
[405698872,1771248568435,-500.0,0.00016057,2]
[405698873,1771248568461,-500.0,0.00016057,2]
[405698874,1771248568485,-500.0,0.00016057,2]
[405698875,1771248568510,-500.0,0.00016057,2]
[405698876,1771248568534,-500.0,0.00016057,2]
[405698877,1771248568573,-500.0,0.00016057,2]
[405698878,1771248568605,-500.0,0.00016057,2]
[405698879,1771248568635,-500.0,0.00016057,2]
[405698880,1771248568662,-500.0,0.00016057,2]
[405698881,1771248568690,-500.0,0.00016057,2]
[405698882,1771248568714,-500.0,0.00016057,2]
[405698883,1771248568739,-500.0,0.00016057,2]
[405698884,1771248568763,-500.0,0.00016057,2]
[405698885,1771248568787,-500.0,0.00016057,2]
[405698886,1771248568813,-500.0,0.00016057,2]
[405698887,1771248568840,-500.0,0.00016057,2]
[405698888,1771248568867,-488.69889939,0.00016057,2]
[405698889,1771248568892,-500.0,0.00016057,2]
[405698890,1771248568918,-500.0,0.00016057,2]
[405698891,1771248568944,-500.0,0.00016057,2]
[405698892,1771248568969,-500.0,0.00016057,2]
[405698893,1771248568994,-500.0,0.00016057,2]
[405698894,1771248569020,-400.00000001,0.00016057,2]
[405698895,1771248569045,-500.0,0.00016057,2]
[405698896,1771248569069,-500.0,0.00016057,2]
[405698897,1771248569095,-500.0,0.00016057,2]
[405698898,1771248569120,-500.0,0.00016057,2]
[405698899,1771248569145,-500.0,0.00016057,2]
[405698900,1771248569173,-500.0,0.00016057,2]
[405698901,1771248569197,-500.0,0.00016057,2]
[405698902,1771248569221,-500.0,0.00016057,2]
[405698903,1771248569246,-482.69373168,0.00016057,2]
[405698944,1771248631965,-1581.71017305,0.00015963,2]
[405698946,1771248631975,-651.0,0.00015963,2]
[405698948,1771248631984,-206.3575591,0.0001601,2]
[405698951,1771248631995,-1200.0,0.00016056,2]
[405698953,1771248632004,-300.0,0.00016056,2]
[405698954,1771248632014,-300.0,0.00016056,2]
[405698956,1771248632023,-17.30626832,0.00016057,2]
[405698959,1771248632032,-500.0,0.00016057,2]
[405698961,1771248632042,-500.0,0.00016057,2]
[405698962,1771248632052,-248.2953631,0.00016057,2]
[405698965,1771248632063,-251.7046369,0.00016057,2]
[405698967,1771248632072,-320.91813921,0.00016057,2]
[405698969,1771248632084,-179.08186079,0.00016057,2]
[405698971,1771248632093,-500.0,0.00016057,2]
[405698973,1771248632103,-500.0,0.00016057,2]
[405698975,1771248632112,-500.0,0.00016057,2]
[405698977,1771248632122,-500.0,0.00016057,2]
[405698979,1771248632131,-500.0,0.00016057,2]
[405698981,1771248632141,-250.0,0.00016057,2]
[405698983,1771248632150,-500.0,0.00016057,2]
[405698985,1771248632159,-151.0,0.0001606,2]
[405698987,1771248632171,-158.348824,0.0001606,2]
[405698989,1771248632180,-155.0,0.00016061,2]
[405698990,1771248632189,-500.0,0.00016061,2]
[405698992,1771248632198,-500.0,0.00016061,2]
[405698994,1771248632208,-500.0,0.00016061,2]
[405698996,1771248632217,-267.74933883,0.00016062,2]
[405698998,1771248632226,-500.0,0.00016062,2]
[405699000,1771248632235,-500.0,0.00016062,2]
[405699002,1771248632245,-3253.23748208,0.00016063,2]
[405699061,1771248638094,-21319.1268743,0.00016063,2]
[405699063,1771248638103,-2435.12130771,0.00016063,2]
[405699065,1771248638112,-300.0,0.00016429,2]
[405699067,1771248638122,-300.0,0.00016429,2]
[405699068,1771248638131,-300.0,0.00016429,2]
[405699070,1771248638140,-300.0,0.00016429,2]
[405699072,1771248638150,-300.0,0.00016429,2]
[405699074,1771248638159,-300.0,0.00016429,2]
[405699076,1771248638172,-300.0,0.00016429,2]
[405699078,1771248638182,-300.0,0.00016429,2]
[405699080,1771248638191,-300.0,0.00016429,2]
[405699082,1771248638201,-300.0,0.00016429,2]
[405699084,1771248638210,-300.0,0.00016429,2]
[405699086,1771248638220,-300.0,0.00016429,2]
[405699088,1771248638230,-300.0,0.00016429,2]
[405699090,1771248638239,-300.0,0.00016429,2]
[405699092,1771248638249,-300.0,0.00016429,2]
[405699094,1771248638258,-600.0,0.00016429,2]
[405699096,1771248638267,-500.0,0.00016438,2]
[405699098,1771248638277,-500.0,0.00016438,2]
[405699100,1771248638286,-500.0,0.00016438,2]
[405699102,1771248638296,-500.0,0.00016438,2]
[405699104,1771248638306,-500.0,0.00016438,2]
[405699106,1771248638315,-500.0,0.00016438,2]
[405699108,1771248638325,-500.0,0.00016438,2]
[405699110,1771248638334,-500.0,0.00016438,2]
[405699112,1771248638344,-500.0,0.00016438,2]
[405699113,1771248638354,-500.0,0.00016438,2]
[405699115,1771248638364,-500.0,0.00016438,2]
[405699117,1771248638374,-500.0,0.00016438,2]
[405699120,1771248638385,-500.0,0.00016438,2]
[405699121,1771248638395,-500.0,0.00016438,2]
[405699123,1771248638404,-500.0,0.00016438,2]
[405699125,1771248638415,-247.48859803,0.00016438,2]
[405699127,1771248638429,-500.0,0.00016438,2]
[405699129,1771248638438,-151.0,0.00016438,2]
[405699131,1771248638448,-500.0,0.00016712,2]
[405699133,1771248638458,-500.0,0.00016712,2]
[405699135,1771248638468,-177.202664,0.00016752,2]
[405699137,1771248638478,-3104.6431595,0.00016983,2]
[405699139,1771248638487,-2456.8950334,0.00016983,2]
[405699141,1771248638496,-308.28129525,0.00016986,2]
[405699143,1771248638506,-500.0,0.00016986,2]
[405699145,1771248638515,-500.0,0.0001726,2]
[405699147,1771248638524,-500.0,0.00017409,2]
[405699149,1771248638534,-420.0,0.00017554,2]
[405699150,1771248638543,-177.202664,0.00017633,2]
[405699153,1771248638553,-1017.0,0.00017642,2]
[405699154,1771248638563,-743.355046,0.00017657,2]
[405699156,1771248638573,-500.0,0.00017764,2]
[405699159,1771248638583,-500.0,0.00017764,2]
[405699160,1771248638592,-521.848783,0.00017764,2]
[405699163,1771248638603,-500.0,0.00017764,2]
[405699165,1771248638612,-360.97197832,0.00017802,2]
[405699167,1771248638622,-291.23751643,0.00017802,2]
[405699169,1771248638632,-524.22752957,0.00017802,2]
[405699171,1771248638643,-931.96005257,0.00017802,2]
[405699173,1771248638654,-1454.73139455,0.00017802,2]
[405699175,1771248638663,-150.0,0.00017808,2]
[405699177,1771248638676,-337.98170727,0.0001796,2]
[405699179,1771248638686,-29508.25843875,0.00018,2]
[405699181,1771248638696,-243.50191974,0.0001801,2]
[405699182,1771248638705,-720.0,0.00018072,2]
[405699185,1771248638715,-202.34665451,0.00018229,2]
[405699187,1771248638725,-231.25331944,0.00018229,2]
[405699189,1771248638735,-386.26480831,0.00018244,2]
[405699190,1771248638744,-250.0,0.00018356,2]
[405699192,1771248638753,-250.0,0.00018381,2]
[405699195,1771248638764,-174.61919141,0.00018381,2]
[405699196,1771248638773,-330.26321937,0.00018381,2]
[405699198,1771248638783,-250.0,0.00018381,2]
[405699200,1771248638793,-181.08010149,0.00018381,2]
[405699202,1771248638803,-250.0,0.00018381,2]
[405699204,1771248638812,-187.78006525,0.00018381,2]
[405699206,1771248638822,-250.0,0.00018381,2]
[405699208,1771248638832,-194.72792766,0.00018381,2]
[405699221,1771248638952,-250.0,0.00018381,2]
[405699223,1771248638969,-250.0,0.00018381,2]
[405699225,1771248638979,-2000.0,0.00018381,2]
[405699227,1771248638989,-264.40984106,0.00018381,2]
[405699229,1771248638999,-201.93286099,0.00018381,2]
[405699231,1771248639009,-159.39164934,0.00018381,2]
[405699233,1771248639019,-209.40437684,0.00018381,2]
[405699235,1771248639029,-2074.0,0.00018381,2]
[405699238,1771248639043,-250.0,0.00018381,2]
[405699239,1771248639053,-217.15233878,0.00018381,2]
[405699241,1771248639062,-236.96831155,0.00018381,2]
[405699243,1771248639071,-250.0,0.00018381,2]
[405699245,1771248639081,-225.18697532,0.00018381,2]
[405699248,1771248639090,-250.0,0.00018381,2]
[405699249,1771248639100,-151.0,0.00018381,2]
[405699251,1771248639110,-233.51889341,0.00018381,2]
[405699253,1771248639119,-250.0,0.00018381,2]
[405699255,1771248639129,-151.0,0.00018381,2]
[405699257,1771248639140,-242.15909246,0.00018381,2]
[405699259,1771248639149,-250.0,0.00018381,2]
[405699261,1771248639158,-151.0,0.00018381,2]
[405699263,1771248639167,-250.0,0.00018381,2]
[405699265,1771248639183,-251.11897888,0.00018381,2]
[405699267,1771248639192,-167.9292335,0.00018381,2]
[405699269,1771248639201,-260.4103811,0.00018381,2]
[405699271,1771248639210,-250.0,0.00018381,2]
[405699273,1771248639220,-270.0455652,0.00018381,2]
[405699275,1771248639230,-250.0,0.00018381,2]
[405699277,1771248639239,-280.03725112,0.00018381,2]
[405699279,1771248639248,-250.0,0.00018381,2]
[405699282,1771248639266,-250.0,0.00018381,2]
[405699284,1771248639278,-235.8427152,0.00018381,2]
[405699287,1771248639293,-250.0,0.00018381,2]
[405699289,1771248639309,-250.0,0.00018381,2]
[405699291,1771248639319,-250.0,0.00018381,2]
[405699293,1771248639329,-309.15612472,0.00018381,2]
[405699295,1771248639339,-250.0,0.00018381,2]
[405699297,1771248639349,-250.0,0.00018381,2]
[405699299,1771248639359,-250.0,0.00018381,2]
[405699301,1771248639368,-500.0,0.00018381,2]
[405699303,1771248639377,-250.0,0.00018381,2]
[405699305,1771248639387,-500.0,0.00018381,2]
[405699307,1771248639397,-250.0,0.00018381,2]
[405699309,1771248639407,-500.0,0.00018381,2]
[405699311,1771248639417,-500.0,0.00018381,2]
[405699313,1771248639430,-500.0,0.00018381,2]
[405699315,1771248639440,-500.0,0.00018381,2]
[405699317,1771248639450,-250.0,0.00018381,2]
[405699319,1771248639459,-500.0,0.00018381,2]
[405699321,1771248639468,-500.0,0.00018381,2]
[405699323,1771248639478,-500.0,0.00018381,2]
[405699325,1771248639488,-500.0,0.00018381,2]
[405699327,1771248639498,-500.0,0.00018381,2]
[405699329,1771248639508,-250.0,0.00018381,2]
[405699331,1771248639517,-500.0,0.00018381,2]
[405699333,1771248639527,-500.0,0.00018381,2]
[405699335,1771248639536,-250.0,0.00018381,2]
[405699337,1771248639546,-500.0,0.00018381,2]
[405699339,1771248639556,-200.0,0.00018381,2]
[405699341,1771248639565,-250.0,0.00018381,2]
[405699343,1771248639574,-500.0,0.00018381,2]
[405699344,1771248639584,-250.0,0.00018381,2]
[405699346,1771248639593,-500.0,0.00018381,2]
[405699347,1771248639603,-250.0,0.00018381,2]
[405699349,1771248639612,-250.0,0.00018381,2]
[405699351,1771248639625,-646.94196752,0.00018381,2]
[405699352,1771248639636,-250.0,0.00018381,2]
[405699353,1771248639649,-250.0,0.00018381,2]
[405699354,1771248639659,-250.0,0.00018381,2]
[405699355,1771248639669,-305.92716569,0.00018381,2]
[405699356,1771248639680,-250.0,0.00018381,2]
[405699357,1771248639692,-250.0,0.00018381,2]
[405699358,1771248639701,-250.0,0.00018381,2]
[405699359,1771248639711,-250.0,0.00018381,2]
[405699360,1771248639720,-250.0,0.00018381,2]
[405699361,1771248639730,-253.4084362,0.00018381,2]
[405699362,1771248639739,-250.0,0.00018381,2]
[405699363,1771248639749,-250.0,0.00018381,2]
[405699364,1771248639759,-250.0,0.00018381,2]
[405699365,1771248639768,-1581.71017299,0.00018391,2]
[405699366,1771248639778,-177.202664,0.00018515,2]
[405699367,1771248639788,-602.93522422,0.00018528,2]
[405699368,1771248639798,-350.0,0.00018904,2]
[405699370,1771248639811,-168.0,0.00019082,2]
[405699371,1771248639821,-160.0,0.00019087,5]
[405699372,1771248639831,-208.509548,0.00019178,2]
[405699373,1771248639840,-587.0,0.00019191,2]
[405699374,1771248639850,-151.0,0.000193,2]
[405699375,1771248639859,-168.0,0.00019312,2]
[405699376,1771248639869,-789.06,0.00019396,3]
[405699377,1771248639878,-177.202664,0.00019396,2]
[405699378,1771248639887,-500.0,0.00019405,2]
[405699380,1771248639897,-500.0,0.00019405,2]
[405699382,1771248639906,-500.0,0.00019405,2]
[405699383,1771248639915,-500.0,0.00019405,2]
[405699384,1771248639926,-500.0,0.00019405,2]
[405699385,1771248639936,-500.0,0.00019405,2]
[405699386,1771248639945,-500.0,0.00019405,2]
[405699387,1771248639954,-500.0,0.00019405,2]
[405699388,1771248639964,-500.0,0.00019405,2]
[405699389,1771248639974,-500.0,0.00019405,2]
[405699390,1771248639989,-450.67,0.00019405,2]
[405699391,1771248639999,-500.0,0.00019405,2]
[405699392,1771248640008,-500.0,0.00019405,2]
[405699394,1771248640016,-500.0,0.00019405,2]
[405699395,1771248640025,-500.0,0.00019405,2]
[405699396,1771248640034,-500.0,0.00019405,2]
[405699397,1771248640044,-353.12353366,0.00019405,2]
[405699398,1771248640053,-24563.31806495,0.00019406,2]
[405699404,1771248640401,-250.0,0.00018381,2]
[405699405,1771248640410,-250.0,0.00018381,2]
[405699406,1771248640420,-250.0,0.00018381,2]
[405699407,1771248640430,-250.0,0.00018381,2]
[405699408,1771248640438,-288.24418166,0.00019406,2]
[405699438,1771248643281,-250.0,0.00018381,2]
[405699439,1771248643290,-250.0,0.00018381,2]
[405699440,1771248643299,-6071.32125213,0.00019406,2]
[405699443,1771248646062,-38706.77265459,0.00019406,2]
[405699482,1771249635102,-230.95,0.000171,2]
[405699483,1771249635127,-1109.9021838,0.00017106,2]
[405699484,1771249635148,-201.64321834,0.00017319,2]
[405699485,1771249635170,-188.96,0.000177,2]
[405699486,1771249635190,-150.0,0.00017808,2]
[405699487,1771249635210,-300.0,0.00018075,2]
[405699488,1771249635235,-250.0,0.00018356,2]
[405699489,1771249635256,-172.45,0.000185,2]
[405699490,1771249635277,-3668.4244487,0.00018524,2]
[405699491,1771249635296,-350.0,0.00018904,2]
[405699492,1771249635317,-300.0,0.00019297,2]
[405699493,1771249635338,-171.77761247,0.00019298,2]
[405699494,1771249635360,-177.4432683,0.00019298,2]
[405699495,1771249638124,500.0,0.00013941,2]
[405699496,1771249643113,-322.5567317,0.00019298,2]
[405699497,1771249643138,-500.0,0.00019298,2]
[405699498,1771249643162,-500.0,0.00019298,2]
[405699499,1771249643184,-500.0,0.00019298,2]
[405699500,1771249643205,-223.87132546,0.00019298,2]
[405699501,1771249643227,-161.59158774,0.00019298,2]
[405699502,1771249643252,-118.81209109,0.00019298,2]
[405699573,1771249838365,-150.0,0.00017808,2]
[405699575,1771249838375,-153.46252019,0.00018356,2]
[405699577,1771249838385,-71484.45563204,0.00019,2]
[405700373,1771249846306,-1664.51782246,0.00019,2]
[405700551,1771249848143,-807.95008129,0.00019,2]
[405707302,1771250198106,3601.12,0.000156,120]
[405707355,1771250519891,-2823.88342187,0.00017999,2]
[405707414,1771250843138,-685.90971406,0.00017999,2]
[405707447,1771250913930,190.874309,0.00014267,2]
[405707477,1771251032233,-322.87633201,0.00017999,2]
[405707479,1771251032243,-686.0,0.00017999,2]
[405707480,1771251032252,-203.61035397,0.00017999,2]
[405707483,1771251032262,-1151.6561626,0.00017999,2]
[405707484,1771251032271,-301.75970907,0.00018,2]
[405707486,1771251032281,-179.97,0.00018,2]
[405707487,1771251032290,-235.64191,0.0001802,2]
[405707488,1771251032300,-300.0,0.00018996,2]
[405707489,1771251032310,-1174.0,0.00018996,2]
[405707490,1771251032319,-252.0,0.00018996,2]
[405707491,1771251032328,-2212.03763568,0.00018997,2]
[405707492,1771251032338,-300.0,0.00018997,2]
[405707493,1771251032347,-300.0,0.00018997,2]
[405707494,1771251032357,-210.78636849,0.00019,2]
[405707534,1771251038564,-69236.61386277,0.00019,2]
[405707547,1771251038683,-20707.55156415,0.00019,2]
[405707549,1771251038693,-54614.40048669,0.00019,2]
[405707759,1771251040763,-11510.51006026,0.00019,2]
[405708068,1771251043654,-4301.88515864,0.00019,2]
[405708332,1771251046578,-4988.8,0.00019,2]
[405716599,1771252039112,-570.53024208,0.0001806,2]
[405716600,1771252039133,-614.5363946,0.00018243,2]
[405716601,1771252039155,-199.53814689,0.00018357,2]
[405716602,1771252039177,-300.0,0.00018898,2]
[405716603,1771252039201,-500.0,0.00018898,2]
[405716604,1771252039230,-500.0,0.00018898,2]
[405716605,1771252039253,-500.0,0.00018898,2]
[405716606,1771252039276,-500.0,0.00018898,2]
[405716607,1771252039300,-83.35301028,0.00018898,2]
[405716608,1771252050574,500.0,0.00013707,2]
[405716659,1771252232527,-647.0,0.00015722,2]
[405716660,1771252232536,-500.0,0.00015722,2]
[405716661,1771252232548,-199.75876271,0.00015983,2]
[405716662,1771252232558,-500.0,0.00016243,2]
[405716663,1771252232567,-235.71534,0.00017983,2]
[405716665,1771252232578,-300.0,0.00018897,2]
[405716667,1771252232588,-70.62680955,0.00018898,2]
[405716904,1771252243979,-346.02018017,0.00018898,2]
[405716905,1771252243989,-202.13181983,0.00018898,2]
[405716911,1771252246624,-297.86818017,0.00018898,2]
[405716912,1771252246634,-500.0,0.00018898,2]
[405716913,1771252246643,-500.0,0.00018898,2]
[405716914,1771252246653,-500.0,0.00018898,2]
[405716915,1771252246662,-500.0,0.00018898,2]
[405716916,1771252246672,-500.0,0.00018898,2]
[405716917,1771252246681,-500.0,0.00018898,2]
[405716918,1771252246691,-558.58974212,0.00018898,2]
[405716919,1771252246700,-500.0,0.00018898,2]
[405716920,1771252246710,-500.0,0.00018898,2]
[405716921,1771252246720,-500.0,0.00018898,2]
[405716922,1771252246730,-500.0,0.00018898,2]
[405716923,1771252246739,-500.0,0.00018898,2]
[405716924,1771252246748,-500.0,0.00018898,2]
[405716925,1771252246757,-500.0,0.00018898,2]
[405716926,1771252246766,-630.18786399,0.00018898,2]
[405716927,1771252246776,-500.0,0.00018898,2]
[405716928,1771252246787,-500.0,0.00018898,2]
[405716929,1771252246798,-2453.10091226,0.00018899,2]
[405716930,1771252246807,-500.0,0.00018899,2]
[405716931,1771252246816,-500.0,0.00018899,2]
[405716932,1771252246827,-500.0,0.00018899,2]
[405716933,1771252246836,-500.0,0.00018899,2]
[405716934,1771252246845,-500.0,0.00018899,2]
[405716935,1771252246854,-500.0,0.00018899,2]
[405716936,1771252246864,-500.0,0.00018899,2]
[405716937,1771252246876,-350.0,0.00018899,2]
[405716938,1771252246885,-500.0,0.00018899,2]
[405716939,1771252246895,-500.0,0.00018899,2]
[405716940,1771252246903,-500.0,0.00018899,2]
[405716941,1771252246913,-500.0,0.00018899,2]
[405716942,1771252246922,-500.0,0.00018899,2]
[405716943,1771252246931,-9035.55760208,0.000189,2]
[405716944,1771252246940,-595.58225937,0.000189,2]
[405716953,1771252319909,-1180.96540882,0.000189,2]
[405717120,1771253237131,-1180.96540882,0.00018103,2]
[405717121,1771253237151,-1289.97893296,0.00018286,2]
[405717188,1771253431597,-235.6419109,0.00017802,2]
[405717190,1771253431608,-194.04928066,0.00018001,2]
[405717191,1771253431618,-159.98081192,0.000183,2]
[405717192,1771253431627,-70.03407234,0.00018386,2]
[405717221,1771253440050,-938.95592766,0.00018386,2]
[405717222,1771253440060,-156.02600941,0.00018715,2]
[405717223,1771253440070,-300.0,0.00018722,2]
[405717224,1771253440079,-150.0,0.00018723,2]
[405717225,1771253440089,-500.0,0.00018723,2]
[405717226,1771253440099,-154.0704792,0.00018723,2]
[405717227,1771253440110,-40.16983364,0.00018723,2]
[405717239,1771253443093,-121.5517683,0.00018723,2]
[405717240,1771253443102,-174.61842877,0.00018723,2]
[405717241,1771253443112,-500.0,0.00018723,2]
[405717242,1771253443123,-150.0,0.00018778,2]
[405717243,1771253443132,-500.0,0.00018778,2]
[405717244,1771253443141,-179.6289923,0.00018778,2]
[405717245,1771253443418,-370.6113899,0.00018778,2]
[405717246,1771253443427,-159.0,0.000188,2]
[405717247,1771253443437,-19.0366101,0.00018833,2]
[405717248,1771253443448,-213.90317119,0.00018833,2]
[405717249,1771253443456,-319.88154144,0.00018833,2]
[405717258,1771253445799,-180.11845856,0.00018833,2]
[405717259,1771253445808,-151.83426459,0.00018846,2]
[405717260,1771253445817,-500.0,0.00018887,2]
[405717261,1771253445826,-2583.96244828,0.00018888,2]
[405717262,1771253445835,-223.87132546,0.00018898,2]
[405717263,1771253445844,-500.0,0.00018898,2]
[405717264,1771253445853,-500.0,0.00018898,2]
[405717265,1771253445863,-500.0,0.00018898,2]
[405717266,1771253445989,-500.0,0.00018898,2]
[405717267,1771253445998,-500.0,0.00018898,2]
[405717268,1771253446007,-593.86559484,0.00018898,2]
[405717269,1771253446016,-500.0,0.00018898,2]
[405717270,1771253446025,-500.0,0.00018898,2]
[405717271,1771253446035,-500.0,0.00018898,2]
[405717272,1771253446044,-500.0,0.00018898,2]
[405717273,1771253446053,-500.0,0.00018898,2]
[405717274,1771253446062,-500.0,0.00018898,2]
[405717275,1771253446071,-500.0,0.00018898,2]
[405717276,1771253446080,-236.43317355,0.00018898,2]
[405717277,1771253446089,-500.0,0.00018898,2]
[405717278,1771253446099,-500.0,0.00018898,2]
[405717279,1771253446108,-500.0,0.00018898,2]
[405717280,1771253446116,-500.0,0.00018898,2]
[405717281,1771253446126,-379.28398489,0.00018898,2]
[405717282,1771253446135,-500.0,0.00018898,2]
[405717283,1771253446144,-385.06143357,0.00018898,2]
[405717284,1771253446152,-337.62424867,0.00018898,2]
[405717285,1771253446161,-500.0,0.00018898,2]
[405717286,1771253446170,-500.0,0.00018898,2]
[405717287,1771253446179,-500.0,0.00018898,2]
[405717288,1771253446190,-500.0,0.00018898,2]
[405717289,1771253446198,-319.87006713,0.00018898,2]
[405717290,1771253446207,-500.0,0.00018898,2]
[405717291,1771253446217,-500.0,0.00018898,2]
[405717292,1771253446227,-500.0,0.00018898,2]
[405717293,1771253446236,-500.0,0.00018898,2]
[405717294,1771253446245,-500.0,0.00018898,2]
[405717295,1771253446255,-500.0,0.00018898,2]
[405717296,1771253446265,-500.0,0.00018898,2]
[405717297,1771253446274,-500.0,0.00018898,2]
[405717298,1771253446283,-500.0,0.00018898,2]
[405717299,1771253446292,-500.0,0.00018898,2]
[405717300,1771253446301,-500.0,0.00018898,2]
[405717301,1771253446310,-500.0,0.00018898,2]
[405717302,1771253446318,-500.0,0.00018899,2]
[405717303,1771253446327,-3223.45233181,0.000189,2]
[405717304,1771253446336,-298.16783959,0.00018942,2]
[405717305,1771253446346,-500.0,0.00018988,2]
[405717306,1771253446354,-163.07694262,0.00018988,2]
[405717307,1771253446363,-334.97788642,0.00018988,2]
[405717352,1771254101181,-3321.900596,0.000156,2]
[405717409,1771254444107,-864.41317683,0.000156,2]
[405717437,1771254564134,-813.68622717,0.000156,2]
[405717438,1771254564160,-193.16829504,0.000164,2]
[405718055,1771254645973,-227.93858815,0.000184,2]
[405718057,1771254645982,-203.9216956,0.00018898,2]
[405718059,1771254645991,-154.5710812,0.000189,2]
[405718061,1771254646000,-1047.29965259,0.00018998,2]
[405718063,1771254646009,-300.0,0.00018998,2]
[405718065,1771254646018,-500.0,0.00018999,2]
[405718067,1771254646027,-464.15385983,0.00018999,2]
[405718069,1771254646036,-315.29158318,0.00018999,2]
[405718071,1771254646045,-431.67349262,0.00018999,2]
[405718073,1771254646054,-500.0,0.00018999,2]
[405718075,1771254646063,-479.98556301,0.00018999,2]
[405718077,1771254646072,-500.0,0.00018999,2]
[405718079,1771254646081,-500.0,0.00018999,2]
[405718081,1771254646090,-500.0,0.00018999,2]
[405718083,1771254646099,-300.0,0.00018999,2]
[405718085,1771254646108,-500.0,0.00018999,2]
[405718087,1771254646118,-165.02211358,0.00018999,2]
[405718089,1771254646127,-88578.61584058,0.00019,2]
[405718091,1771254646136,-2260.96714221,0.00019072,2]
[405718093,1771254646145,-743.355046,0.00019169,2]
[405718095,1771254646154,-5000.0,0.000192,2]
[405718097,1771254646164,-500.0,0.00019273,2]
[405718100,1771254646173,-20013.0,0.000193,2]
[405718102,1771254646183,-37037.09249203,0.00019306,2]
[405718970,1771254749455,184.99,0.00015,30]
[405719121,1771255641131,-3477.60333215,0.00017071,2]
[405719122,1771255648213,-434.709,0.00017071,2]
[405719123,1771255650087,-479.87632566,0.00017071,2]
[405719124,1771255650109,-80.6134702,0.00017157,2]
[405719138,1771255802112,588.0,0.00016985,2]
[405719197,1771255832373,-35.3751298,0.00016985,2]
[405719198,1771255832383,-111.12345012,0.00017157,2]
[405719199,1771255832393,-172.45,0.000185,2]
[405719200,1771255832403,-168.0,0.00018686,2]
[405719201,1771255832412,-743.355046,0.00018889,2]
[405719202,1771255832422,-584.25907431,0.00018999,2]
[405719203,1771255832436,-226.24956597,0.00019157,2]
[405719204,1771255832445,-300.0,0.00019297,2]
[405719205,1771255832455,-300.0,0.00019297,2]
[405719206,1771255832464,-622.0,0.00019297,2]
[405719207,1771255832474,-428.04594896,0.00019305,2]
[405719208,1771255832483,-1978.34624946,0.00019306,2]
[405719209,1771255832492,-376.67918609,0.00019306,2]
[405719210,1771255832502,-3226.83865784,0.00019306,2]
[405719235,1771255838365,-4364.40856,0.00019306,2]
[405719236,1771255840499,-351.48525876,0.00019306,2]
[405719246,1771255843780,-644.66,0.00019296,3]
[405719247,1771255843790,-184.16,0.00019306,2]
[405719248,1771255843811,-917483.31606406,0.00019306,2]
[405719249,1771255843823,-168.0,0.00019316,2]
[405719250,1771255843834,-500.0,0.00019393,2]
[405719251,1771255843845,-259.92281873,0.00019394,2]
[405719252,1771255843856,-174.61919141,0.00019394,2]
[405719253,1771255843867,-181.08010149,0.00019394,2]